Cogmind - Beta 16 @@@ ROGUE MODE // 2026.03.06 @ 06:53:43 Player: GermanMO Result: Destroyed by R2-6IW(R) with Subdweller Machine Gun Performance ------------- Evolutions (0) 0 Regions Visited (2) 400 Robots Destroyed (22) 110 Value Destroyed (436) 436 Prototype IDs (0) 0 Alien Tech Used (0) 0 Bonus (0) 0 TOTAL SCORE: 946 Bonus ------- None Cogmind --------- Core Integrity 0/250 Matter 12/300 Energy 100/100 System Corruption 0% Temperature Cool (0) Movement Core (450) Ox8 Location -10/Subcaves Parts ------- > --- POWER (1) -------- (None) > --- PROPULSION (2) --- (None) > --- UTILITY (2) ------ Large Storage Unit > --- WEAPON (2) ------- Rocket Launcher Makeshift Hammer > --- INVENTORY (15) --- Aluminum Leg Aluminum Leg Compact Wheel Rocket Launcher Peak State ------------ > --- POWER ------------ Ion Engine > --- PROPULSION ------- Light Treads Light Treads > --- UTILITY ---------- Small Storage Unit Seismic Detector > --- WEAPON ----------- Light EM Pulse Cannon Rocket Launcher > --- INVENTORY -------- Light Ion Engine Aluminum Leg Aluminum Leg Wheel Compact Wheel Improved Terrain Scanner Small Laser Mining Laser [Rating: 10] Favorites ----------- Power Ion Engine Engine Ion Engine Propulsion Light Treads Treads Light Treads Wheel Wheel Utility Core Shielding Device Seismic Detector Storage Large Storage Unit Protection Core Shielding Weapon Light Assault Rifle Energy Gun Small Laser Energy Cannon Light EM Pulse Cannon Ballistic Gun Light Assault Rifle Launcher Rocket Launcher Special Weapon Mining Laser Impact Weapon Makeshift Hammer Build | -11 -10 -10 ------- Run | Yrd Mat Sub Slots Evolved . | . . . Power . | . . . Propulsion . | . . . Utility . | . . . Weapon . | . . . Parts Attached 19 | 7 7 5 Power 2 | 1 1 . Engine 2 | 1 1 . Core . | . . . Reactor . | . . . Propulsion 3 | 2 . 1 Treads 2 | 2 . . Leg . | . . . Wheel 1 | . . 1 Hover . | . . . Flight . | . . . Utility 4 | 2 2 . Device 1 | 1 . . Storage 2 | 1 1 . Processor . | . . . Hackware . | . . . Protection 1 | . 1 . Artifact . | . . . Weapon 10 | 2 4 4 Energy Gun 1 | 1 . . Energy Cannon 1 | . 1 . Ballistic Gun 1 | 1 . . Ballistic Cannon . | . . . Launcher 5 | . 3 2 Special Weapon 1 | . . 1 Impact Weapon 1 | . . 1 Slashing Weapon . | . . . Piercing Weapon . | . . . Special Melee Weapon . | . . . Unidentified Prototypes . | . . . Parts Lost 10 | . 3 7 Power 2 | . 1 1 Propulsion 3 | . . 3 Utility 1 | . . 1 Weapon 4 | . 2 2 Highest Loss Streak 4 | . 3 4 To Critical Strikes . | . . . Average Backups 6 | 4 7 5 Power . | . . . Propulsion 3 | 2 3 3 Utility . | . . . Weapon 2 | 1 2 1 Tool/Special . | . . . Unused Backups 5 | . 2 3 Power . | . . . Propulsion 3 | . . 3 Utility 1 | . 1 . Weapon 1 | . 1 . Tool/Special . | . . . Average Slot Usage (%) 93 | . 94 92 Engine 13 | . 13 13 Treads 26 | . 28 22 Device 5 | . 7 . Storage 14 | . 14 14 Protection 8 | . 6 14 Energy Cannon 2 | . 3 . Ballistic Gun 4 | . 6 . Launcher 12 | . 13 11 Special Weapon 3 | . . 10 Peak Build Rating 10 | 8 10 9 Average Rating 7 | 5 8 7 On Entrance 5 | . 8 7 Avg Prop Armor Cover (%) . | . . . Naked Turns . | . . . Heaviest Build 34 | 13 34 33 Greatest Support 40 | 40 40 40 Greatest Overweight (x) 9 | 1 . 9 Average Overweight (x) . | . . . Largest Inventory Capacity 15 | 8 15 15 Average Capacity 11 | 7 10 15 Most Carried 8 | 8 8 6 Average Carried 6 | 4 7 5 Final Capacity 15 | 8 15 15 Final Carried 8 | 8 6 4 Class Distribution -------------------- 100% | Mutant Dominant Class ---------------- Mutant | -10/Materials Mutant | -10/Subcaves Resources | -11 -10 -10 ----------- Run | Yrd Mat Sub Matter Collected 392 | 282 101 9 Remotely . | . . . Salvage Created 416 | 143 236 37 Parts 40 | 14 22 4 Haulers Intercepted 1 | . 1 . Recyclers Shooed 1 | 1 . . Parts Field Recycled . | . . . Retrieved Matter . | . . . Parts Self-Destructed 4 | . . 4 Prevented . | . . . Parts Restored . | . . . Kills | -11 -10 -10 ------- Run | Yrd Mat Sub Combat Hostiles Destroyed 13 | . 12 1 AOE 13 | . 12 1 Classes Destroyed 8 | 2 5 1 Worker 1 | . 1 . Builder 1 | . 1 . Tunneler 5 | 4 1 . Hauler 1 | . 1 . Recycler 1 | 1 . . Swarmer 6 | . 6 . Grunt 6 | . 6 . Subdweller 1 | . . 1 Best Kill Streak 4 | 4 4 1 Combat Bots Only 3 | . 3 1 Max Kills in Single Turn 4 | 1 4 1 Gunslinging . | . . . Exploded 3 | . 3 1 Melee . | . . . Uniques/NPCs Destroyed . | . . . Combat | -11 -10 -10 -------- Run | Yrd Mat Sub Hostile Shots Fired 72 | . 40 32 Missed 21 | . 10 11 Hits 51 | . 30 21 Projectile 51 | . 30 21 Critical Strikes 1 | . 1 . Damage Taken 1150 | . 586 564 Core 254 | . 101 153 Absorbed by Shields . | . . . Redirected to Shielding 52 | . 17 35 Core Remaining (%) 100 | 100 . . Volleys Fired 55 | 12 36 7 Largest 2 | 2 1 1 Hottest 100 | 60 56 100 Shots Fired 67 | 24 36 7 Gun 28 | 24 4 . Cannon 8 | . 8 . Launcher 27 | . 24 3 Special 4 | . . 4 Kinetic 19 | 12 4 3 Thermal 16 | 12 . 4 Explosive 24 | . 24 . Electromagnetic 8 | . 8 . Robot Hit Streak 4 | 4 4 3 Robot Miss Streak 4 | 4 4 1 Penetration Max . | . . . Secondary Targets . | . . . Shots Hit Robots 29 | 12 15 2 Core Hits 34 | 6 24 4 Critical Kills . | . . . Critical Parts Destroyed . | . . . Critical Strikes . | . . . Melee Attacks . | . . . Impact . | . . . Slashing . | . . . Piercing . | . . . Sneak Attacks . | . . . Combat Hostiles . | . . . Follow-up Attacks . | . . . Damage Inflicted 1656 | 134 1345 177 Guns 140 | 134 6 . Cannons 153 | . 153 . Explosions 1363 | . 1186 177 Melee . | . . . Ramming . | . . . Kinetic 220 | 37 6 177 Thermal 211 | 97 114 . Explosive 1072 | . 1072 . Electromagnetic 153 | . 153 . Impact . | . . . Slashing . | . . . Piercing . | . . . Highest Corruption . | . . . Average Corruption . | . . . Corruption Purged . | . . . Corruption Blocked . | . . . Overload Shots . | . . . Overflow Damage 66 | . 66 . Projectiles 8 | . 8 . Explosions 58 | . 58 . Melee . | . . . Knockbacks . | . . . Impact . | . . . Kinetic . | . . . Secondary . | . . . Self-Inflicted Damage 312 | . 253 59 Shots 9 | . 8 1 Rammed . | . . . Targets Rammed . | . . . Kicked . | . . . Crushed . | . . . Highest Temperature 76 | 40 76 . Average Temperature 32 | 23 40 . Received Heat Transfer 207 | . 171 36 Siege Activations . | . . . Martial Activations . | . . . Shielding Activations . | . . . Robots Disrupted . | . . . Combat Hostiles . | . . . Robots Corrupted . | . . . Combat Hostiles . | . . . Parts Fried . | . . . Impact Corruptions . | . . . Robots Melted . | . . . Combat Hostiles . | . . . Parts Melted 1 | 1 . . Heat Transferred 375 | 225 150 . Parts Sabotaged . | . . . Parts Stolen . | . . . Parts Stripped . | . . . Power Chain Reactions 1 | . 1 . Alert | -11 -10 -10 ------- Run | Yrd Mat Sub Maximum Alert Level 1 | . 1 . Low Security (%) 69 | 100 64 . Level 1 30 | . 35 . Level 2 . | . . . Level 3 . | . . . Level 4 . | . . . Level 5 . | . . . High Security . | . . . Max Security . | . . . Peak Influence 379 | 10 379 . Initial . | . . . Average 108 | 1 124 . Influence Increases 644 | 25 619 . Destroy 0b10 Robot/C 240 | . 240 . Destroy 0b10 Robot/NC 45 | 25 20 . Destroy Leader 42 | . 42 . Successful Hack 16 | . 16 . Disable Machine 105 | . 105 . Destroy Structure 181 | . 181 . Lose Combat Pursuer 15 | . 15 . Influence Decreases 644 | 25 246 373 Entered New Map 180 | . . 180 Time Decay 434 | 25 216 193 Lost Part 30 | . 30 . Squads Dispatched 1 | . 1 . Investigation . | . . . Extermination . | . . . Reinforcement 1 | . 1 . Assault . | . . . Garrison . | . . . Intercept . | . . . Searches Triggered . | . . . Construction Impeded . | . . . Haulers Reinforced . | . . . Active Scanning Responses . | . . . Cargo Convoy Interrupts . | . . . Stealth | -11 -10 -10 --------- Run | Yrd Mat Sub Distress Signals 2 | . 2 . Communications Jammed . | . . . Distress Signals . | . . . Times Spotted 28 | . 24 4 Peak Tracking Total 4 | . 4 3 Tactical Retreats 1 | . 1 . Traps | -11 -10 -10 ------- Run | Yrd Mat Sub Traps Triggered 1 | . . 1 Indirectly . | . . . Trap Hack Attempts . | . . . Triggered . | . . . Disarmed . | . . . Reprogrammed . | . . . Reused . | . . . Traps Extracted . | . . . Installed . | . . . Triggered . | . . . Machines | -11 -10 -10 ---------- Run | Yrd Mat Sub Machines Disabled 7 | . 7 . Max in Single Turn 3 | . 3 . Machines Repaired . | . . . Machines Dismantled . | . . . Machines Sabotaged . | . . . Overloaded Fab Kills . | . . . Hacking | -11 -10 -10 --------- Run | Yrd Mat Sub Machines Accessed 3 | . 2 1 Terminals 2 | . 2 . Fabricators . | . . . Repair Stations . | . . . Recycling Units . | . . . Scanalyzers . | . . . Garrison Access . | . . . Total Hacks 6 | . 2 4 Successful 6 | . 2 4 Failed . | . . . Catastrophic . | . . . Database Lockouts . | . . . Manual . | . . . Terminals 2 | . 2 . Fabricators . | . . . Repair Stations . | . . . Recycling Units . | . . . Scanalyzers . | . . . Garrison Access . | . . . Terminal Hacks 6 | . 2 4 Record 4 | . . 4 Branch Access Points 1 | . 1 . Zone Layout 1 | . 1 . Fabricator Hacks . | . . . Repair Station Hacks . | . . . Recycling Unit Hacks . | . . . Scanalyzer . | . . . Garrison Access Hacks . | . . . Unauthorized Hacks . | . . . Terminals . | . . . Fabricators . | . . . Repair Stations . | . . . Recycling Units . | . . . Scanalyzers . | . . . Garrison Access . | . . . Data Cores Recovered . | . . . Used . | . . . Hacking Detections 2 | . 2 . Full Trace Events . | . . . Feedback Events . | . . . Feedback Blocked . | . . . Robot Schematics Acquired . | . . . Robots Built . | . . . Authchips . | . . . Time . | . . . Total Robot Build Rating . | . . . Part Schematics Acquired . | . . . Parts Built . | . . . Authchips . | . . . Time . | . . . Total Part Build Rating . | . . . Part Studies Acquired . | . . . Parts Repaired . | . . . Time . | . . . Parts Recycled . | . . . Recycled Matter . | . . . Retrieved Matter . | . . . Retrieved Components . | . . . Parts Scanalyzed . | . . . Part Schematics Acquired . | . . . Parts Damaged . | . . . Bothacking | -11 -10 -10 ------------ Run | Yrd Mat Sub Used RIF Installer . | . . . Robots Hacked . | . . . Non-combat . | . . . Combat . | . . . Robot Hacks Applied . | . . . Relay Couplers Released . | . . . Fabnet Peak Effective % . | . . . Robots Rewired . | . . . Allies Hacked . | . . . Hacks Repelled . | . . . Allies | -11 -10 -10 -------- Run | Yrd Mat Sub Total Allies . | . . . Largest Group . | . . . Highest-Rated Group . | . . . Highest-Rated Ally . | . . . Total Orders . | . . . Ally Attacks . | . . . Total Damage . | . . . Kills . | . . . Allies Corrupted . | . . . Allies Melted . | . . . Intel | -11 -10 -10 ------- Run | Yrd Mat Sub Active Infowar (turns) 577 | 26 551 . Seismic 577 | 26 551 . Robot Analysis Total . | . . . Derelict Logs Recovered 1 | . . 1 Drone Launches . | . . . Drone Recoveries . | . . . Exploration | -11 -10 -10 ------------- Run | Yrd Mat Sub Turns Passed 1693 | 155 1020 518 Spaces Moved 839 | 73 450 316 Core 20 | 19 . 1 Treads 756 | 54 450 252 Legs . | . . . Wheels 63 | . . 63 Hover . | . . . Flight . | . . . Fastest Speed 50 | 50 160 110 Average Speed 155 | 140 160 153 Slowest Speed 500 | 160 160 500 Overloaded Moves . | . . . Propulsion Burnouts . | . . . Robots Hopped . | . . . Potential Cave-ins . | . . . Cave-ins Triggered . | . . . Exploration Rate (%) 39 | 6 83 29 Regions Visited 2 Branch Regions 1 Pre-discovered Areas 1 | . . 1 Known Exits Taken . | . . . Unknown Exits Taken 2 | 1 1 . Scrap Searched . | . . . Spaces Dug . | . . . Terrain Destroyed 230 | . 203 27 Melee . | . . . Projectile . | . . . AOE 230 | . 203 27 Terrain Rammed . | . . . Walls Destroyed . | . . . Machines Disabled . | . . . Actions | -11 -10 -10 --------- Run | Yrd Mat Sub Total 1152 | 101 716 335 Wait 220 | 2 212 6 Move 837 | 72 449 316 Hop . | . . . Pick Up 13 | 8 5 . Fast Attach 14 | 7 5 2 Attach 5 | . 2 3 Detach 1 | . . 1 Swap . | . . . Drop 7 | . 7 . Fire 55 | 12 36 7 Melee . | . . . Ram . | . . . Kick . | . . . Crush . | . . . Escape Stasis . | . . . Rewire . | . . . Trap . | . . . Miscellaneous . | . . . Route ------- -11/Scrapyard -10/Materials (discovered 4 exits: [*Mat] / *Min x2 / *Sub) -10/Subcaves (discovered 1 exit: [*Mat]) History --------- Turn | Location | Event 12 | -11/Scrapyard | Discovered new exit (range 16) 156 | -11/Scrapyard | Entered Materials 208 | -10/Materials | Identified exit to Mines 305 | -10/Materials | Build established: Mutant 942 | -10/Materials | Lost 3 parts (1p2w) 980 | -10/Materials | Discovered new exit (range 15) 1165 | -10/Materials | Discovered new exit (range 7) 1176 | -10/Materials | Entered Subcaves 1177 | -10/Subcaves | Shifting Twisted Machinery released Sub. Shrapnel Launcher 1198 | -10/Subcaves | Shifting Twisted Machinery released Piercing Trap 1416 | -10/Subcaves | Learned location of Zion (-6) 1416 | -10/Subcaves | Met a Zionite searching for "candidates" 1509 | -10/Subcaves | A swath of the cavern ceiling suddenly collapsed 1533 | -10/Subcaves | Learned location of 2 exits from Materials 1595 | -10/Subcaves | Core integrity fell below 50% 1640 | -10/Subcaves | Discovered new exit (range 7) 1645 | -10/Subcaves | Lost 4 parts (2n2w) 1666 | -10/Subcaves | Visited Clippyterm 1669 | -10/Subcaves | Learned Factory stockpile data 1683 | -10/Subcaves | Core integrity fell below 20% 1694 | -10/Subcaves | Destroyed by R2-6IW(R) with Subdweller Machine Gun Last Messages --------------- Welcome to Clippyterm v0.53, my misguided attempt to resurrect an ancient AI. I give up. There must be something fundamentally wrong with the algorithm, because no matter how much data I collect to feed it, half the time it still manages to suggest unhelpful sample queries and responses. --DD-NU8 >>Record! "Finders Keepers" It looks like you're interested in reappropriating Complex 0b10 components, would you like help? Data stored: Factory stockpile data. >>Record! "Botnets" It looks like you seek to become a more effective hacker when it comes to the important hacks, and I heartily recommend installing Trojan(Botnet) on at least one or two Terminals to improve your odds of success elsewhere. >>Record! "LRC-V1" It looks like you're REDACTED, I can suggest REDACTED and REDACTED. Also definitely avoid REDACTED. 01680_ Lgt. Ion Engine destroyed. 01692_ Wheel destroyed. 01694_ Core Shielding destroyed. Map ----- +----------------------------------------------------+ | ?????????????????????????????????????????????????? | | ?????????????????????????????????????????????????? | | ?????????????????????????????????????????????????? | | ?????????????????????????????????????????????????? | | ?????????????????????????????????????????????????? | | ?????????????????????????????????????????????????? | | ?????????????????????????????????????????????????? | | ?????????????????????????????????????????????????? | | ?????????????????????????????????????????????????? | | ?????????????????????????????????????????????????? | | ?????????????????????????????????????????????????? | | ?????????????????????????????????????????????????? | | ?????????????????????????????????????????????????? | | ?????????????????????????????????????????????????? | | ?????????????????????????????????????????????????? | | ?????????????????????????????????????????????????? | | ?????????????????????????????????????????????????? | | ?????????????????????????????????????????????????? | | ?????????????????????????????????????????????????? | | ?????????????????????#####??###??????????????????? | | ?????????????????????# #### #??????????????????? | | ?????????????????????# #??????????????????? | | ??????????????????????# #??????????????????? | | ???????????????????????# #??????????????????? | | ???????????????????????# #??????????????????? | | ???????????????????????# @ ###??????????????????? | | ??????????????????????## ;##??????????????????? | | ??????????????????????# RR #??????????????????? | | ??????????????????????# R #??????????????????? | | ????????????????####### #??????????????????? | | ????????????????#"""## ### ##??????????????????? | | ????????????????#"" ## #?# #???????????????????? | | ????????????????#"X #####???????????????????? | | ????????????????#"" ## #??????????????????????? | | ????????????????#"""### #??????????????????????? | | ??????????????######## #??????????????????????? | | ?????????????## ###????????????????????? | | ?????????????# #????????????????????? | | ?????????????## #????????????????????? | | ??????????????# #####????????????????????? | | ?????????##?### ##????????????????????????? | | ?????##### ## # ####?????????????????????????? | | ?????# ##????????????????????????????? | | ?? ##????????????????????????????? | | #? ## # < ###??????????????????????????? | | # ??????#### ##?????????????????????????? | | #####??# #?????????????????????????? | | # # ??# ## ##????????????????????????? | | ??# ## ###??????????????????????? | | ### ## #??????????????????????? | +----------------------------------------------------+ Best States ------------- Heat Dissipation 25 Energy Generation 10 Energy Capacity 250 Matter Stores 300 Matter Capacity 300 Sight Range 16 Terrain Scan Density 10 Core Shielding 20 Evasion (%) 40 Recoil Reduction 2 Item Schematics ----------------- None Robot Schematics ------------------ None Fabricated ------------ Nothing Repaired ---------- Nothing Studied --------- None Alien Tech Used ----------------- None Achievements -------------- None Challenges ------------ None Game ------ Seed InterceptSpliceDoomcannon Manual? 0 Play Time 00:17:20 Cumulative 35.0 hours Start 2026.03.06 @ 06:33:46 End 2026.03.06 @ 06:53:43 Sessions 1 Manual Loads 0 Difficulty Rogue Special Mode None Game No. 44 Rogue 25 Adventurer 0 Explorer 19 Win Type - Total 1 Types 1/0/0/0/0/0/0/0/0/0 Lore% 30 Gallery% 30 Achievement% 25 Wizard Run 0 Options --------- Layout 0 ASCII 0 Keyboard 1 Movement Arrows Keybinds 0 Fullscreen 2 Font 12/Smallcaps Map View 76x50 Zoom Use 0% Tactical HUD 1 Map Filters NONE Filters NONE Steam X RUN: c09b34de-be58-4387-83d1-3636caccdc44